bitfinex-derivatives/quotes_SOLF0:USTF0_20250329
["timestamp","ask_amount","ask_price","bid_price","bid_amount"]
[1743241497197,303.5853147,125.99,125.88,262.26]
[1743241497398,2.135,125.99,125.88,270.2069]
[1743241497594,0.05442963,125.94,125.92,0.05753429]
[1743241498303,0.05442963,125.94,125.92,8.00203429]
[1743241498496,0.05442963,125.94,125.92,0.05753429]
[1743241500196,338.627255,125.93,125.77,1.9895]
[1743241500396,37.1769403,125.89,125.77,4.114]
[1743241500796,39.3419403,125.91,125.79,37.1769403]
[1743241500995,2.165,125.91,125.79,37.1769403]
[1743241501192,2.165,125.91,125.77,4.114]
[1743241501399,0.06075509,125.86,125.84,0.0538679]
[1743241501594,0.06075509,125.86,125.77,2.1245]
[1743241501899,2.1855,125.86,125.76,299.3769403]
[1743241502101,2.1855,125.86,125.78,7.9527]
[1743241502293,2.1855,125.86,125.76,299.3769403]
[1743241502499,2.165,125.91,125.83,37.1769403]
[1743241502807,2.165,125.91,125.79,37.1769403]
[1743241503002,2.165,125.91,125.77,37.1769403]
[1743241503003,37.1769403,125.87,125.77,37.1769403]
[1743241503198,1.9971,125.86,125.78,7.9533]
[1743241503406,1.9971,125.86,125.77,37.1769403]
[1743241503595,1.9971,125.86,125.79,37.1769403]
[1743241503794,0.05952121,125.83,125.77,37.1769403]
[1743241504005,0.05952121,125.83,125.76,262.2]
[1743241504207,0.05952121,125.83,125.78,37.1769403]
[1743241504400,0.05952121,125.83,125.82,7.9508]
[1743241504800,0.05952121,125.83,125.78,37.1769403]
[1743241505007,0.05952121,125.83,125.76,299.3769403]
[1743241505203,0.05952121,125.83,125.8,37.1769403]
[1743241505406,2.121e-05,125.83,125.81,1.44034528]
[1743241505605,2.121e-05,125.83,125.81,3.52874528]
[1743241505805,2.121e-05,125.83,125.77,2.1625]
[1743241506006,2.121e-05,125.83,125.78,1.44027999]
[1743241506709,2.121e-05,125.83,125.82,7.9508]
[1743241507004,2.121e-05,125.83,125.81,37.1769403]
[1743241507203,2.121e-05,125.83,125.79,0.05849335]
[1743241507604,2.121e-05,125.83,125.79,37.23543365]
[1743241507805,2.121e-05,125.83,125.79,0.05849335]
[1743241508400,301.4503147,125.82,125.79,0.05849335]
[1743241508606,37.1769403,125.81,125.79,0.05849335]
[1743241508805,7.9531,125.79,125.7,262.14]
[1743241509001,37.1769403,125.77,125.66,37.1769403]
[1743241509205,37.1769403,125.77,125.67,1.44136417]
[1743241509505,37.1769403,125.75,125.67,1.44136417]
[1743241509807,303.4868147,125.78,125.7,7.958]
[1743241510103,0.05134533,125.72,125.65,4.2449]
[1743241510304,37.1769403,125.73,125.65,2.1805]
[1743241510713,0.05407792,125.7,125.65,2.1805]
[1743241511007,0.05407792,125.7,125.64,262.14]
[1743241511210,0.05407792,125.7,125.66,7.9609]
[1743241511508,0.05407792,125.7,125.66,37.1769403]
[1743241512208,2.0365,125.78,125.68,37.1769403]
[1743241512400,301.4503147,125.8,125.73,37.1769403]
[1743241512608,10.65125408,125.78,125.73,299.4569403]
[1743241512808,10.65125408,125.78,125.75,37.1769403]
[1743241513003,5.408e-05,125.78,125.77,45.1309403]
[1743241513202,101.81684901,125.79,125.77,37.1769403]
[1743241513507,101.87442298,125.79,125.78,7.9534]
[1743241513713,95.32012298,125.79,125.78,7.9534]
[1743241513909,95.32012298,125.79,125.76,0.05159521]
[1743241514107,161.41545382,125.8,125.77,37.1769403]
[1743241514411,37.1769403,125.88,125.78,1.44072063]
[1743241514611,340.656955,125.9,125.79,37.1769403]
[1743241515115,340.656955,125.9,125.77,299.4569403]
[1743241515315,303.4800147,125.9,125.79,37.1769403]
[1743241515514,0.06091582,125.85,125.83,0.05559202]
[1743241515704,0.06091582,125.85,125.83,8.00559202]
[1743241516313,0.06091582,125.85,125.83,0.05559202]
[1743241518214,0.06091582,125.85,125.78,1.44031563]
[1743241518420,309.3999147,125.84,125.77,262.28]
[1743241518618,301.4503147,125.84,125.77,299.4569403]
[1743241518921,301.4503147,125.84,125.78,1.440497]
[1743241519115,37.1769403,125.9,125.79,37.1769403]
[1743241519315,303.4809147,125.91,125.8,1.440497]
[1743241519516,7.9463,125.9,125.83,0.05857184]
[1743241519716,0.06129511,125.85,125.83,0.05857184]
[1743241521327,0.06129511,125.85,125.84,7.9496]
[1743241521526,301.4503147,125.96,125.83,45.17551214]
[1743241521822,328.50868626,125.98,125.89,37.1769403]
[1743241522720,328.50868626,125.98,125.92,0.05415892]
[1743241522923,0.05127954,125.95,125.92,0.05415892]
[1743241524525,338.627255,125.94,125.83,262.12]
[1743241524926,301.4503147,125.94,125.84,37.1769403]
[1743241525125,303.4731147,125.98,125.89,37.1769403]
[1743241525329,303.4731147,125.98,125.91,37.1769403]
[1743241525531,301.4503147,125.98,125.91,299.2969403]
[1743241525728,0.05538356,125.96,125.93,0.05119367]
[1743241526926,0.05538356,125.96,125.91,262.12]
[1743241526927,301.4503147,125.95,125.91,262.12]
[1743241527122,301.4503147,125.95,125.85,299.2969403]
[1743241527326,7.9456,125.91,125.85,270.0685]
[1743241527532,37.1769403,125.94,125.85,270.0685]
[1743241527724,37.1769403,125.94,125.85,262.12]
[1743241528232,0.05817853,125.91,125.85,299.2969403]
[1743241528434,8.00347853,125.91,125.86,7.9482]
[1743241528929,0.05817853,125.91,125.86,7.9482]
[1743241529127,0.05817853,125.91,125.85,270.0687]
[1743241529333,0.05817853,125.91,125.85,262.12]
[1743241529632,0.05817853,125.91,125.87,37.1769403]
[1743241530031,7.9412,125.98,125.91,7.9446]
[1743241530325,2.0787,125.99,125.89,37.1769403]
[1743241530524,7.9418,125.97,125.9,7.9453]
[1743241530724,7.9418,125.97,125.89,37.1769403]
[1743241530924,2.0787,125.99,125.91,37.1769403]
[1743241531125,301.4503147,126.01,125.93,37.1769403]
[1743241531332,0.05100973,125.96,125.94,262.10092673]
[1743241531531,321.782153,126.02,125.94,336.45480733]
[1743241531733,321.782153,126.02,125.99,37.1769403]
[1743241531929,321.782153,126.02,125.94,262.04]
[1743241532129,321.782153,126.02,125.96,37.1769403]
[1743241532532,321.782153,126.02,125.94,262.04]
[1743241532732,0.06126486,126.0,125.98,0.05996743]
[1743241533745,0.06126486,126.0,125.94,262.04]
[1743241533932,0.06126486,126.0,125.95,7.9421]
[1743241534130,0.06126486,126.0,125.94,262.04]
[1743241534930,0.06126486,126.0,125.96,0.05766505]
[1743241536137,7.9414,125.97,125.96,0.05766505]
[1743241536337,37.1769403,125.98,125.86,299.1569403]
[1743241536635,7.9453,125.91,125.87,1.439156]
[1743241537038,37.1769403,125.94,125.86,261.98]
[1743241537231,37.1769403,125.96,125.86,261.98]
[1743241537434,0.05771553,125.91,125.86,261.98]
[1743241537837,0.05771553,125.91,125.87,7.9471]
[1743241538032,0.05771553,125.91,125.86,261.98]
[1743241539735,7.9463,125.9,125.86,261.98]
[1743241540240,7.946,125.9,125.86,261.98]
[1743241540739,7.946,125.9,125.86,269.9279]
[1743241541038,0.05771553,125.91,125.86,299.1569403]
[1743241541431,0.05771553,125.91,125.9,7.9458]
[1743241542133,4.3028,125.99,125.9,7.9458]
[1743241542134,305.7531147,125.99,125.94,7.9433]
[1743241542341,303.5648147,125.99,125.92,37.1769403]
[1743241542531,508.98801068,126.02,125.94,37.1769403]
[1743241542730,323.979953,126.02,125.98,7.9403]
[1743241542937,323.979953,126.02,125.94,299.1769403]
[1743241543139,321.782153,126.02,125.99,7.9396]
[1743241543440,321.782153,126.02,125.97,0.05723139]
[1743241543834,321.83353388,126.02,125.98,7.9405]
[1743241544034,321.83353388,126.02,125.97,0.05723139]
[1743241544544,7.939,126.01,125.97,0.05723139]
[1743241545137,321.83353388,126.02,125.97,0.05723139]
[1743241546235,321.83353388,126.02,126.0,37.1769403]
[1743241546740,321.75343388,126.02,126.01,7.9388]
[1743241547141,279.82846645,126.02,126.01,7.9388]
[1743241547341,4.103,126.12,126.01,7.94]
[1743241547549,4.103,126.12,126.04,37.1769403]
[1743241547942,4.103,126.12,126.07,7.9346]
[1743241548345,4.103,126.12,126.04,37.1769403]
[1743241548544,0.05492833,126.11,126.08,0.06056394]
[1743241548746,0.05492833,126.11,126.08,37.23750424]
[1743241549038,0.05492833,126.11,126.1,37.1769403]
[1743241549443,0.05492833,126.11,126.1,306.9901403]
[1743241549745,32.16687713,126.13,126.1,306.9769403]
[1743241550043,32.16687713,126.13,126.12,37.1769403]
[1743241550943,32.16687713,126.13,126.12,45.0969403]
[1743241551143,0.05933601,126.14,126.12,37.1769403]
[1743241552039,0.05933601,126.14,126.11,0.05521654]
[1743241554744,7.99013601,126.14,126.11,0.05521654]
[1743241555448,0.05933601,126.14,126.11,0.05521654]
[1743241555650,37.23627631,126.14,126.02,298.8769403]
[1743241555949,37.1769403,126.14,126.03,1.43732619]
[1743241556150,301.4503147,126.13,126.03,1.43732619]
[1743241556651,301.4503147,126.17,126.03,1.43732619]
[1743241556945,8.815e-05,126.09,126.07,0.05059851]
[1743241557147,7.9271,126.2,126.07,1.43731778]
[1743241557345,447.97606632,126.22,126.11,37.1769403]
[1743241557547,447.97606632,126.22,126.12,261.66]
[1743241557751,7.9264,126.21,126.13,7.9308]
[1743241558051,447.97606632,126.22,126.12,261.66]
[1743241558353,0.05766908,126.18,126.16,0.05522055]
[1743241559954,0.05766908,126.18,126.12,261.66]
[1743241560252,309.3795147,126.17,126.12,261.66]
[1743241560653,301.4503147,126.17,126.12,261.66]
[1743241560853,0.05766908,126.18,126.15,37.1769403]
[1743241561048,0.05766908,126.18,126.12,261.66]
[1743241561249,7.98626908,126.18,126.15,0.05459001]
[1743241561655,0.05766908,126.18,126.15,0.05459001]
[1743241562052,0.05766908,126.18,126.15,37.23153031]
[1743241562452,0.05766908,126.18,126.15,45.16113031]
[1743241562756,0.05766908,126.18,126.15,37.23153031]
[1743241563054,0.05766908,126.18,126.15,0.05459001]
[1743241564048,0.05766908,126.18,126.15,7.98409001]
[1743241564244,0.05766908,126.18,126.15,0.05459001]
[1743241564448,0.05766908,126.18,126.13,37.1769403]
[1743241565049,0.05766908,126.18,126.15,37.1769403]
[1743241565249,0.05766908,126.18,126.13,37.1769403]
[1743241565452,301.4503147,126.24,126.16,37.1769403]
[1743241565648,301.4503147,126.24,126.19,37.1769403]
[1743241566056,309.3747147,126.24,126.19,37.1769403]
[1743241566554,301.4503147,126.24,126.19,37.1769403]
[1743241566754,0.05142082,126.23,126.21,37.1769403]
[1743241566961,0.05142082,126.23,126.22,37.1769403]
[1743241567453,0.05142082,126.23,126.22,45.1025403]
[1743241567652,32.16687713,126.27,126.22,37.1769403]
[1743241568659,0.05028071,126.26,126.23,7.97807409]
[1743241569258,0.05028071,126.26,126.24,7.9241]
[1743241569454,0.05028071,126.26,126.24,37.1769403]
[1743241570262,0.05028071,126.26,126.25,7.9238]
[1743241570862,0.05028071,126.26,126.23,0.05327409]
[1743241571562,7.97348071,126.26,126.23,0.05327409]
[1743241571763,0.05028071,126.26,126.23,0.05327409]
[1743241571957,0.05028071,126.26,126.25,37.1769403]
[1743241572160,0.05028071,126.26,126.25,45.1007403]
[1743241572464,1.9899,126.32,126.24,37.1769403]
[1743241572662,9.9095,126.32,126.26,37.1769403]
[1743241573158,9.9095,126.32,126.26,45.0996403]
[1743241573361,7.9202,126.31,126.26,45.0996403]
[1743241573556,0.05894645,126.3,126.28,0.05260889]
[1743241574260,7.9212,126.29,126.28,0.05260889]
[1743241574562,0.05894645,126.3,126.28,0.05260889]
[1743241575760,0.05894645,126.3,126.28,37.22954919]
[1743241575960,0.01344645,126.3,126.28,298.58954919]
[1743241576160,0.01344645,126.3,126.29,7.9212]
[1743241576360,0.01344645,126.3,126.28,298.58954919]
[1743241576556,0.01344645,126.3,126.28,306.51074919]
[1743241576762,0.01344645,126.3,126.28,298.58954919]
[1743241577163,0.01344645,126.3,126.29,7.9212]
[1743241577764,0.01344645,126.3,126.28,306.51114919]
[1743241577964,0.01344645,126.3,126.28,261.41260889]
[1743241578866,7.93444645,126.3,126.28,261.41260889]
[1743241579068,0.01344645,126.3,126.28,261.41260889]
[1743241580172,0.01344645,126.3,126.29,7.9212]
[1743241581273,10.70565532,126.35,126.32,7.9188]
[1743241581573,10.70565532,126.35,126.31,37.1769403]
[1743241582272,10.70565532,126.35,126.32,7.9193]
[1743241582473,0.06004146,126.34,126.32,7.97734358]
[1743241582877,0.06004146,126.34,126.32,0.05804358]
[1743241583066,0.06004146,126.34,126.28,261.36]
[1743241583267,0.06004146,126.34,126.29,37.1769403]
[1743241583868,0.06004146,126.34,126.28,261.36]
[1743241584366,7.92,126.31,126.3,0.05736492]
[1743241584572,0.06004146,126.34,126.22,298.4369403]
[1743241584573,37.1769403,126.32,126.22,298.4369403]
[1743241584772,37.1769403,126.32,126.23,1.43504005]
[1743241585080,303.5562147,126.33,126.26,37.1769403]
[1743241585476,7.92,126.31,126.26,37.1769403]
[1743241585674,7.97666173,126.31,126.28,0.05952458]
[1743241586581,0.05666173,126.31,126.28,0.05952458]
[1743241586779,0.05666173,126.31,126.29,7.9209]
[1743241587080,0.05666173,126.31,126.28,0.05952458]
[1743241588278,0.05666173,126.31,126.3,7.9206]
[1743241588874,0.05666173,126.31,126.28,0.05952458]
[1743241589476,0.05666173,126.31,126.3,7.9206]
[1743241590977,42.87253245,126.35,126.34,7.9181]
[1743241591184,18.44097181,126.35,126.34,45.0950403]
[1743241591383,7.181e-05,126.35,126.34,45.0950403]
[1743241591676,85.86702028,126.36,126.35,7.9175]
[1743241592683,10.8630913,126.37,126.36,7.9169]
[1743241593882,10.8630913,126.37,126.36,45.0938403]
[1743241594386,10.8630913,126.37,126.36,53.0138403]
[1743241594984,10.8630913,126.37,126.36,46.52752948]
[1743241595483,10.8630913,126.37,126.34,37.23286572]
[1743241595980,10.8630913,126.37,126.36,45.0938403]
[1743241596580,85.86702028,126.38,126.37,7.9162]
[1743241597087,2.0115,126.45,126.38,7.9152]
[1743241597275,2.0115,126.45,126.36,37.1769403]
[1743241597780,0.05375077,126.42,126.39,0.05649033]
[1743241598283,7.96725077,126.42,126.39,0.05649033]
[1743241598481,0.05375077,126.42,126.39,0.05649033]
[1743241599176,0.05375077,126.42,126.41,7.9137]
[1743241599374,0.05375077,126.42,126.39,0.05649033]
[1743241600178,7.9139,126.41,126.39,0.05649033]
[1743241600378,0.05375077,126.42,126.39,0.05649033]
[1743241600882,7.96695077,126.42,126.39,0.05649033]
[1743241601087,0.05375077,126.42,126.39,0.05649033]
[1743241601578,0.05375077,126.42,126.39,7.97099033]
[1743241602075,0.05375077,126.42,126.4,7.9142]
[1743241602276,0.05375077,126.42,126.39,0.05649033]
[1743241602889,0.05375077,126.42,126.39,7.97099033]
[1743241604487,0.05375077,126.42,126.39,0.05649033]
[1743241604790,0.05375077,126.42,126.4,7.9137]
[1743241605090,0.05375077,126.42,126.39,0.05649033]
[1743241605389,7.9081,126.5,126.41,37.1769403]
[1743241605588,4.1192,126.5,126.39,0.05649033]
[1743241605783,41.2961403,126.5,126.39,37.1769403]
[1743241605979,7.9104,126.47,126.39,37.1769403]
[1743241606185,37.1769403,126.48,126.38,261.1]
[1743241606585,0.05807075,126.44,126.42,0.05631647]
[1743241608390,0.05807075,126.44,126.42,7.96901647]
[1743241608888,0.05807075,126.44,126.42,0.05631647]
[1743241609192,0.05807075,126.44,126.42,7.96931647]
[1743241610586,0.05807075,126.44,126.42,0.05631647]
[1743241611389,0.05807075,126.44,126.4,7.9142]
[1743241611585,0.05807075,126.44,126.35,1.6576845]
[1743241611785,22.69774914,126.43,126.35,1.6576845]
[1743241612091,22.69774914,126.41,126.35,0.28132]
[1743241612294,30.61164914,126.41,126.36,7.9165]
[1743241612594,0.05928432,126.39,126.37,0.05584766]
[1743241614492,0.05928432,126.39,126.38,7.9156]
[1743241614880,0.05928432,126.39,126.38,30.61334914]
[1743241615690,0.05928432,126.39,126.38,22.69774914]
[1743241615881,0.05928432,126.39,126.37,0.05584766]
[1743241617991,7.97428432,126.39,126.37,0.05584766]
[1743241618290,0.05928432,126.39,126.35,0.28132]
[1743241618587,0.05928432,126.39,126.28,22.69774914]
[1743241618792,0.05928432,126.39,126.29,1.43441378]
[1743241618982,22.69774914,126.4,126.29,9.35531378]
[1743241619290,22.69774914,126.4,126.3,1.43441378]
[1743241619486,0.05575206,126.36,126.33,0.05107474]
[1743241620285,7.9178,126.35,126.33,0.05107474]
[1743241620891,0.05575206,126.36,126.33,0.05107474]
[1743241621394,10.0182,126.42,126.34,22.69774914]
[1743241621587,10.0182,126.42,126.36,22.69774914]
[1743241621785,2.1046,126.42,126.36,22.69774914]
[1743241622389,2.1046,126.42,126.38,7.9152]
[1743241622594,0.06063065,126.4,126.38,0.05640085]
[1743241622996,0.06063065,126.4,126.38,7.97170085]
[1743241623193,0.06063065,126.4,126.38,0.05640085]
[1743241623392,7.915,126.39,126.38,0.05640085]
[1743241623797,0.06063065,126.4,126.34,283.73774914]
[1743241623993,7.9161,126.38,126.34,283.73774914]
[1743241624194,0.06063065,126.4,126.34,261.04]
[1743241624389,324.14806384,126.41,126.31,1.37658228]
[1743241624693,324.14806384,126.41,126.3,22.69774914]
[1743241624993,0.0555264,126.37,126.34,0.05296304]
[1743241625296,0.0555264,126.37,126.3,22.69774914]
[1743241625596,301.4503147,126.39,126.3,22.69774914]
[1743241625993,301.4503147,126.46,126.37,30.61344914]
[1743241626195,301.4503147,126.45,126.37,22.69774914]
[1743241626494,0.05945672,126.43,126.4,0.05075331]
[1743241627196,7.9135,126.42,126.4,0.05075331]
[1743241627396,40.58472885,126.42,126.35,44.82082881]
[1743241627597,40.58472885,126.42,126.35,36.90372881]
[1743241627787,7.9144,126.4,126.33,36.90372881]
[1743241628096,301.4503147,126.41,126.33,36.90372881]
[1743241628298,309.3640147,126.41,126.33,36.90372881]
[1743241628493,0.05887791,126.38,126.35,36.90372881]
[1743241628693,0.05887791,126.38,126.36,0.05236583]
[1743241629095,0.05887791,126.38,126.37,44.81992881]
[1743241630895,0.05887791,126.38,126.37,46.25371761]
[1743241631097,0.05887791,126.38,126.37,44.81992881]
[1743241631397,0.05887791,126.38,126.37,7.9162]
[1743241631597,0.05887791,126.38,126.36,0.05236583]
[1743241632303,0.05887791,126.38,126.31,297.92372881]
[1743241632500,0.05887791,126.38,126.32,1.43429622]
[1743241632695,0.05887791,126.38,126.31,261.02]
[1743241633097,7.9166,126.37,126.32,7.919]
[1743241633292,9.9826,126.37,126.32,7.919]
[1743241633700,2.066,126.37,126.33,7.9785839]
[1743241633898,2.066,126.37,126.33,0.0600839]
[1743241634301,0.05634488,126.36,126.33,0.0600839]
[1743241635004,0.05634488,126.36,126.35,7.9175]
[1743241635806,4.488e-05,126.36,126.35,44.82122881]
[1743241636105,301.4503147,126.43,126.35,38.33774707]
[1743241636299,301.4503147,126.43,126.37,36.90372881]
[1743241636507,301.4503147,126.43,126.39,36.90372881]
[1743241636802,2.0732,126.45,126.42,7.9126]
[1743241637405,2.1321227,126.45,126.43,7.9124]
[1743241637604,2.1321227,126.45,126.42,0.05494594]
[1743241637804,2.1321227,126.45,126.43,7.912]
[1743241638006,2.1321227,126.45,126.42,0.05494594]
[1743241638407,0.0589227,126.45,126.42,7.96784594]
[1743241638803,0.0589227,126.45,126.43,36.90372881]
[1743241639304,0.0589227,126.45,126.43,44.81572881]
[1743241639508,0.0589227,126.45,126.43,36.90372881]
[1743241640707,0.0589227,126.45,126.44,7.9118]
[1743241641200,0.0589227,126.45,126.43,36.90372881]
[1743241641406,0.0589227,126.45,126.42,0.05494594]
[1743241643109,0.0589227,126.45,126.39,261.02]
[1743241643905,7.9702227,126.45,126.39,261.02]
[1743241644105,7.9702227,126.45,126.41,0.06006824]
[1743241644306,0.0589227,126.45,126.41,0.06006824]
[1743241644811,0.0589227,126.45,126.41,7.97376824]
[1743241645114,0.0589227,126.45,126.41,0.06006824]
[1743241645412,0.0589227,126.45,126.42,7.9129]
[1743241645909,0.0589227,126.45,126.41,7.97356824]
[1743241646111,0.0589227,126.45,126.41,0.06006824]
[1743241646302,7.913,126.43,126.41,0.06006824]
[1743241646505,0.0589227,126.45,126.41,0.06006824]
[1743241646908,7.9129,126.43,126.41,0.06006824]
[1743241647306,0.0589227,126.45,126.41,0.06006824]
[1743241647610,7.9131,126.43,126.41,0.06006824]
[1743241647811,0.0589227,126.45,126.41,0.06006824]
[1743241648213,7.9124,126.44,126.41,0.06006824]
[1743241648913,7.9125,126.43,126.41,0.06006824]
[1743241649816,7.9131,126.42,126.41,0.06006824]
[1743241650013,36.96265151,126.45,126.35,1.37641894]
[1743241650221,2.1895,126.41,126.33,260.96]
[1743241651116,0.05708269,126.38,126.33,260.96]
[1743241651711,0.05708269,126.38,126.37,7.9162]
[1743241652117,0.05708269,126.38,126.33,260.96]
[1743241652320,7.97328269,126.38,126.34,78.618]
[1743241653622,0.05708269,126.38,126.34,70.7]
[1743241653822,0.05708269,126.38,126.35,36.90372881]
[1743241654320,0.05708269,126.38,126.36,7.9165]
[1743241654822,0.05708269,126.38,126.37,44.81992881]
[1743241655013,0.05708269,126.38,126.37,36.90372881]
[1743241656026,0.05708269,126.38,126.35,36.90372881]
[1743241657321,0.05708269,126.38,126.37,7.9162]
[1743241659025,0.05708269,126.38,126.36,7.9166]
[1743241659420,0.05708269,126.38,126.36,76.7166]
[1743241659624,0.05708269,126.38,126.37,7.9162]
[1743241660025,0.05708269,126.38,126.36,68.8]
[1743241660221,0.05708269,126.38,126.34,7.9179]
[1743241660426,0.05708269,126.38,126.34,76.4179]
[1743241660628,7.97318269,126.38,126.34,76.4179]
[1743241660924,0.05708269,126.38,126.34,68.5]
[1743241661319,0.05708269,126.38,126.37,7.9162]
[1743241664829,0.05708269,126.38,126.34,91.20592648]
[1743241665917,0.05708269,126.38,126.36,7.9165]
[1743241667127,0.05708269,126.38,126.36,7.9166]
[1743241668028,0.05708269,126.38,126.34,91.20592648]
[1743241669327,0.05708269,126.38,126.36,7.9163]
[1743241669524,0.05708269,126.38,126.36,22.70592648]
[1743241669922,8.269e-05,126.38,126.37,7.9162]
[1743241670125,301.4503147,126.44,126.36,22.70592648]
[1743241670319,301.4503147,126.44,126.38,22.70592648]
[1743241671227,0.06051194,126.42,126.4,0.05461184]
[1743241672324,0.06051194,126.42,126.4,7.96881184]
[1743241673324,0.06051194,126.42,126.4,0.05461184]
[1743241674129,7.97401194,126.42,126.4,0.05461184]
[1743241674828,0.06051194,126.42,126.4,0.05461184]
[1743241676734,0.06051194,126.42,126.41,7.9137]
[1743241677031,0.06051194,126.42,126.4,0.05461184]
[1743241678030,0.06051194,126.42,126.4,7.96891184]
[1743241678430,0.06051194,126.42,126.4,0.05461184]
[1743241680125,0.06051194,126.42,126.41,7.9137]
[1743241681031,71.52541796,126.51,126.41,1.43333053]
[1743241681333,75.76391796,126.51,126.48,7.9088]
[1743241681534,71.52541796,126.51,126.46,22.70592648]
[1743241681930,71.52541796,126.51,126.5,7.9081]
[1743241682833,71.52541796,126.51,126.5,30.61402648]
[1743241683132,71.52541796,126.51,126.47,0.05885666]
[1743241683535,71.52541796,126.51,126.49,7.9087]
[1743241684332,71.52541796,126.51,126.48,22.70592648]
[1743241684530,0.05345131,126.52,126.48,30.61512648]
[1743241685034,0.05345131,126.52,126.49,7.9087]
[1743241685337,0.05345131,126.52,126.48,22.70592648]
[1743241685527,7.96065131,126.52,126.48,7.9093]
[1743241685731,0.05345131,126.52,126.48,7.9093]
[1743241685926,0.05345131,126.52,126.47,0.05885666]
[1743241686134,0.05345131,126.52,126.48,22.70592648]
[1743241686337,0.05345131,126.52,126.49,7.9086]
[1743241686637,0.05345131,126.52,126.48,22.70592648]
[1743241686836,0.05345131,126.52,126.49,7.9083]
[1743241687036,0.05345131,126.52,126.47,0.05885666]
[1743241688333,0.05345131,126.52,126.43,61.38]
[1743241688534,301.4503147,126.51,126.43,61.38]
[1743241688735,2.117,126.5,126.43,61.38]
[1743241689139,7.9091,126.49,126.45,7.9111]
[1743241689339,2.117,126.5,126.43,61.38]
[1743241689540,0.05556829,126.48,126.46,0.05756969]
[1743241690342,7.9107,126.46,126.43,61.38]
[1743241690541,0.05556829,126.48,126.43,61.38]
[1743241690745,7.9126,126.43,126.39,70.03064755]
[1743241691042,22.70592648,126.47,126.39,60.74]
[1743241691540,7.9125,126.44,126.39,60.74]
[1743241692132,7.9125,126.44,126.41,7.9133]
[1743241692741,0.05594705,126.45,126.37,60.4]
[1743241693045,22.70592648,126.47,126.38,1.43359396]
[1743241693340,22.70592648,126.47,126.39,7.9146]
[1743241693341,0.0607317,126.42,126.39,7.9146]
[1743241693540,0.0607317,126.42,126.37,60.4]
[1743241693840,0.0607317,126.42,126.38,1.43359932]
[1743241694042,0.0607317,126.42,126.37,60.14]
[1743241694245,0.0607317,126.42,126.35,260.86]
[1743241694437,0.0607317,126.42,126.36,61.49387997]
[1743241694637,0.0607317,126.42,126.36,60.06]
[1743241694835,7.9148,126.4,126.36,67.9764]
[1743241695344,0.05395301,126.39,126.36,67.9764]
[1743241695645,0.05395301,126.39,126.36,82.76592648]
[1743241696040,0.05395301,126.39,126.38,7.9156]
[1743241696238,0.05395301,126.39,126.38,30.62152648]
[1743241696438,0.05395301,126.39,126.38,32.05520433]
[1743241697344,0.05395301,126.39,126.38,1.43367785]
[1743241697541,0.05395301,126.39,126.37,59.32]
[1743241698635,0.05395301,126.39,126.35,319.9]
[1743241699040,0.05395301,126.39,126.36,7.9167]
[1743241699552,0.05395301,126.39,126.35,319.9]
[1743241699744,0.05395301,126.39,126.35,260.86]
[1743241700249,0.05395301,126.39,126.35,268.7771]
[1743241700749,0.05395301,126.39,126.35,260.86]
[1743241702344,0.05395301,126.39,126.36,7.9167]
[1743241702549,0.05395301,126.39,126.35,260.86]
[1743241702851,0.05395301,126.39,126.37,7.9157]
[1743241703652,0.05395301,126.39,126.36,7.9166]
[1743241704551,0.05395301,126.39,126.35,7.9174]
[1743241704749,0.05395301,126.39,126.32,57.54]
[1743241704946,7.916,126.38,126.34,7.9176]
[1743241705140,0.05474169,126.37,126.32,57.54]
[1743241705545,0.05474169,126.37,126.34,7.9176]
[1743241706446,0.05474169,126.37,126.35,7.9173]
[1743241707145,0.05474169,126.37,126.34,7.9179]
[1743241708047,0.05474169,126.37,126.29,285.19152626]
[1743241708253,303.6844147,126.4,126.3,58.17427278]
[1743241708449,0.05003492,126.34,126.31,1.43427278]
[1743241708650,7.9166,126.37,126.34,7.9181]
[1743241709055,7.9713838,126.37,126.34,7.9181]
[1743241709257,7.9713838,126.37,126.33,7.9185]
[1743241710354,7.9169,126.36,126.33,7.9185]
[1743241710555,0.0547838,126.37,126.31,56.4]
[1743241710953,0.0547838,126.37,126.34,7.9175]
[1743241711348,0.0547838,126.37,126.33,14.20391572]
[1743241711553,0.0547838,126.37,126.36,7.9169]
[1743241711758,0.0547838,126.37,126.36,63.8769]
[1743241712856,0.0547838,126.37,126.36,55.96]
[1743241713054,7.9715838,126.37,126.31,70.00391572]
[1743241713450,0.0547838,126.37,126.31,14.20391572]
[1743241713650,7.9173,126.36,126.3,55.72]
[1743241714055,0.05475506,126.34,126.32,7.9193]